bitfinex-derivatives/quotes_ETHF0:USTF0_20250329
["timestamp","ask_amount","ask_price","bid_price","bid_amount"]
[1743267773754,12.12707,1821.6,1821.4,11.4274]
[1743267774159,11.0287,1821.6,1821.3,7.13820361]
[1743267774460,12.12706,1821.6,1821.3,15.73369]
[1743267774660,12.12706,1821.6,1821.3,15.7337]
[1743267774855,12.12706,1821.6,1821.4,11.4274]
[1743267775256,11.0287,1821.6,1821.4,12.52587]
[1743267775669,12.12709,1821.6,1821.4,11.4274]
[1743267776254,1.09841,1821.5,1821.4,11.4274]
[1743267776655,14.2365,1821.6,1821.1,3.2078]
[1743267776957,7.94249,1821.4,1821.2,1.09859]
[1743267777160,1.09859,1821.2,1821.1,3.2078]
[1743267777558,6.52939,1821.2,1821.1,3.2078]
[1743267777959,6.844,1821.4,1821.1,3.2078]
[1743267778165,3.2078,1821.6,1821.2,11.2683]
[1743267778359,16.26946,1821.6,1821.4,1.09845]
[1743267778762,1.09843,1821.5,1821.3,1.09849]
[1743267778962,12.55371,1821.5,1821.4,11.3523]
[1743267779168,11.4553,1821.5,1821.1,7.6568]
[1743267779368,12.55372,1821.5,1821.3,1.09851]
[1743267779571,11.4553,1821.5,1821.3,1.09851]
[1743267779775,12.55374,1821.5,1821.2,12.45084]
[1743267779972,12.55371,1821.5,1821.2,12.45083]
[1743267780270,11.4553,1821.5,1821.3,1.09848]
[1743267780470,11.4553,1821.5,1821.1,3.2078]
[1743267780672,1.09859,1821.2,1821.1,3.2078]
[1743267780864,1.09863,1821.2,1820.9,11.3523]
[1743267781167,11.4553,1821.1,1820.9,12.45103]
[1743267781464,11.4553,1821.1,1820.9,19.70532633]
[1743267781669,11.4553,1821.1,1820.9,18.60659633]
[1743267781873,7.66502233,1821.7,1821.2,1.09856]
[1743267782068,11.98109,1821.6,1821.3,11.3737]
[1743267782369,1.09853,1821.3,1821.1,4.449]
[1743267782571,11.98129,1821.2,1821.0,11.3737]
[1743267782767,10.8827,1821.2,1821.0,11.3737]
[1743267782964,10.8827,1821.2,1821.0,15.68021]
[1743267783190,10.8827,1821.2,1821.0,14.5815]
[1743267783370,10.8827,1821.2,1821.0,15.68017]
[1743267783669,7.2532,1821.6,1821.0,15.68017]
[1743267783869,10.8827,1821.5,1821.2,3.2078]
[1743267784076,10.8827,1821.5,1821.3,11.3737]
[1743267784269,11.98114,1821.5,1821.3,11.3737]
[1743267784676,10.8827,1821.5,1821.3,12.47222]
[1743267784874,7.2532,1821.6,1821.5,1.09841]
[1743267785069,7.2532,1821.6,1821.4,8.20257666]
[1743267785378,18.5405,1821.6,1821.5,11.435]
[1743267785772,19.63885,1821.6,1821.5,11.435]
[1743267786075,18.5405,1821.6,1821.5,11.435]
[1743267786880,18.5405,1821.6,1821.5,12.53341]
[1743267787178,1.10654233,1821.7,1821.5,11.435]
[1743267787570,11.2873,1821.6,1821.5,11.435]
[1743267787975,0.00822233,1821.7,1821.5,11.435]
[1743267788272,0.00822233,1821.7,1821.6,1.09835]
[1743267790364,0.00822233,1821.7,1821.5,15.74117]
[1743267790571,11.74732233,1821.7,1821.5,15.74117]
[1743267790777,11.74732233,1821.7,1821.5,20.18817]
[1743267791478,11.74732233,1821.7,1821.5,14.6428]
[1743267791873,11.74732233,1821.7,1821.5,15.74121]
[1743267792577,11.74732233,1821.7,1821.5,15.74116]
[1743267792777,11.74732233,1821.7,1821.6,1.09835]
[1743267793074,0.00822233,1821.7,1821.6,1.09835]
[1743267793873,0.00822233,1821.7,1821.6,8.04435]
[1743267794077,5.4814,1822.3,1821.8,2.74558]
[1743267794277,5.4814,1822.3,1822.1,1.09801]
[1743267794468,5.4814,1822.3,1822.2,11.9434]
[1743267794668,6.57933,1822.3,1822.2,11.9434]
[1743267794973,5.4814,1822.3,1822.2,13.04139]
[1743267795176,5.4814,1822.3,1822.2,11.9434]
[1743267795976,0.00822233,1822.4,1822.3,1.09793]
[1743267797277,0.00822233,1822.4,1822.2,17.48636]
[1743267797478,0.00822233,1822.4,1822.2,16.3884]
[1743267797671,0.00822233,1822.4,1822.3,1.09793]
[1743267799583,0.00822233,1822.4,1822.3,11.31905266]
[1743267799886,5.8367,1822.9,1822.8,1.09763]
[1743267800084,5.8367,1822.9,1822.7,1.09764]
[1743267800382,5.8367,1822.9,1822.7,1.09763]
[1743267800584,5.8367,1822.9,1822.8,11.5648]
[1743267800784,5.8367,1822.9,1822.6,7.23051919]
[1743267800785,1.09769,1822.7,1822.6,7.23051919]
[1743267800985,3.2078,1822.7,1822.2,11.5648]
[1743267801187,1.09799,1822.3,1822.1,3.21602233]
[1743267801485,6.8351,1822.6,1822.1,3.21602233]
[1743267801687,6.8351,1822.6,1822.3,1.09791]
[1743267801988,1.09781,1822.5,1822.2,11.5648]
[1743267802180,6.8351,1822.6,1822.2,11.5648]
[1743267802387,1.09781,1822.5,1822.3,1.09788]
[1743267802580,7.93288,1822.6,1822.4,1.09787]
[1743267802981,1.09781,1822.5,1822.4,1.09787]
[1743267803183,6.8351,1822.6,1822.5,1.09781]
[1743267804783,6.8351,1822.6,1822.4,12.60414]
[1743267805090,7.93286,1822.6,1822.4,12.60415]
[1743267805283,6.8351,1822.6,1822.4,12.60415]
[1743267805788,6.8351,1822.6,1822.4,11.5063]
[1743267805988,6.8351,1822.6,1822.5,1.09781]
[1743267806284,6.94250233,1822.9,1822.7,1.09767]
[1743267806488,1.09776,1822.6,1822.4,15.9473]
[1743267806788,3.2078,1822.8,1822.4,15.9473]
[1743267807291,3.2078,1822.6,1822.1,3.21602233]
[1743267807490,1.09796,1822.3,1822.1,3.21602233]
[1743267807689,7.0884,1822.2,1822.1,3.21602233]
[1743267807886,7.0884,1822.2,1822.1,4.31407233]
[1743267808486,1.09772,1822.7,1822.1,12.93536763]
[1743267808683,7.0884,1822.7,1822.5,1.09778]
[1743267808886,7.0884,1822.7,1822.2,15.8038]
[1743267809088,8.18612,1822.7,1822.2,15.8038]
[1743267809389,8.18612,1822.7,1822.4,1.09783]
[1743267809692,8.18612,1822.7,1822.5,11.5102]
[1743267810695,7.0884,1822.7,1822.6,1.09775]
[1743267810893,3.2078,1823.0,1822.8,1.09763]
[1743267811191,0.00822233,1822.9,1822.8,8.74443]
[1743267813788,0.00822233,1822.9,1822.8,15.99282061]
[1743267813994,0.00822233,1822.9,1822.8,25.99602061]
[1743267814194,0.00822233,1822.9,1822.8,26.41639631]
[1743267815993,2.33e-06,1822.9,1822.8,28.91639631]
[1743267816294,2.33e-06,1822.9,1822.8,29.46519631]
[1743267816795,5.6395,1823.6,1823.0,2.74365]
[1743267817001,16.7125,1823.6,1823.2,3.2078]
[1743267817200,16.7125,1823.6,1823.5,1.0972]
[1743267818002,16.7125,1823.6,1823.5,12.9074]
[1743267819201,16.7125,1823.6,1823.5,11.8102]
[1743267819496,16.7125,1823.6,1823.4,5.54247233]
[1743267819797,16.7125,1823.6,1823.4,5.54246233]
[1743267819998,16.7125,1823.6,1823.5,1.0972]
[1743267820198,16.7125,1823.6,1823.4,5.54246233]
[1743267820798,16.7125,1823.6,1823.5,1.0972]
[1743267821101,16.7125,1823.6,1823.5,12.4891]
[1743267821296,0.00822233,1823.7,1823.6,1.09714]
[1743267821898,11.31202233,1823.7,1823.6,1.09714]
[1743267823595,11.31202233,1823.7,1823.5,12.48908]
[1743267823795,11.31202233,1823.7,1823.5,12.4891]
[1743267824503,12.40912233,1823.7,1823.4,5.54245233]
[1743267824703,5.4731,1823.6,1823.4,5.54245233]
[1743267824898,11.3617,1823.5,1823.4,5.54245233]
[1743267826804,0.00822233,1823.7,1823.4,7.65302233]
[1743267827005,0.00822233,1823.7,1823.6,1.09714]
[1743267827600,11.14202233,1823.7,1823.6,1.09714]
[1743267828107,11.14202233,1823.7,1823.5,11.57]
[1743267828499,11.14202233,1823.7,1823.6,1.09714]
[1743267828899,11.14202233,1823.7,1823.5,12.66718]
[1743267829101,17.10192233,1823.7,1823.5,12.66718]
[1743267829302,17.10192233,1823.7,1823.6,1.09714]
[1743267829603,17.10192233,1823.7,1823.5,12.66716]
[1743267829902,17.10192233,1823.7,1823.4,0.00822233]
[1743267830202,1.0972,1823.5,1823.4,0.00822233]
[1743267830596,5.7078,1823.5,1822.8,1.09761]
[1743267830810,3.2078,1823.1,1822.7,12.43843]
[1743267831109,19.2995,1823.0,1822.9,1.09756]
[1743267831606,19.2995,1823.0,1822.8,1.10581233]
[1743267831807,19.2995,1823.0,1822.9,1.09756]
[1743267832002,20.39701,1823.0,1822.8,0.00822233]
[1743267832207,19.2995,1823.0,1822.8,1.10582233]
[1743267832807,19.2995,1823.0,1822.8,0.00822233]
[1743267833007,20.39703,1823.0,1822.8,0.00822233]
[1743267833409,19.2995,1823.0,1822.8,0.00822233]
[1743267833610,19.2995,1823.0,1822.9,1.09756]
[1743267833802,3.2078,1823.3,1823.2,1.09738]
[1743267834703,3.2078,1823.3,1823.0,1.09745]
[1743267835002,11.322,1823.2,1823.1,11.5396]
[1743267835203,11.322,1823.2,1823.1,12.63704]
[1743267835602,11.322,1823.2,1822.9,3.2078]
[1743267835906,17.37189,1823.1,1822.8,0.00822233]
[1743267836111,11.322,1823.0,1822.8,0.00822233]
[1743267836406,12.41951,1823.0,1822.8,0.00822233]
[1743267837299,12.41951,1823.0,1822.8,1.10584233]
[1743267837808,12.41952,1823.0,1822.8,0.00822233]
[1743267838004,12.41952,1823.0,1822.8,1.10584233]
[1743267838307,12.41952,1823.0,1822.8,0.00822233]
[1743267838508,1.09756,1822.9,1822.8,0.00822233]
[1743267838911,12.41955,1823.0,1822.8,0.00822233]
[1743267839405,1.09756,1822.9,1822.8,0.00822233]
[1743267840307,12.41952,1823.0,1822.8,0.00822233]
[1743267840703,11.322,1823.0,1822.8,1.10581233]
[1743267841099,11.322,1823.0,1822.8,13.02693233]
[1743267841304,12.41951,1823.0,1822.8,13.02693233]
[1743267841511,12.41951,1823.0,1822.8,11.92932233]
[1743267841808,12.41951,1823.0,1822.8,13.02694233]
[1743267842210,11.322,1823.0,1822.9,1.09756]
[1743267842411,11.8974,1823.2,1823.1,1.09744]
[1743267842611,16.2854,1823.6,1823.1,4.427]
[1743267842908,11.0964,1823.4,1823.2,20.24662225]
[1743267843303,11.0964,1823.4,1823.2,19.14927225]
[1743267843508,11.0964,1823.4,1823.2,12.0061]
[1743267843710,11.0964,1823.4,1823.2,13.10346]
[1743267844602,11.0964,1823.4,1823.2,12.0061]
[1743267844909,1.09732,1823.3,1823.2,12.0061]
[1743267845107,12.19369,1823.4,1823.1,5.52441]
[1743267845315,1.09729,1823.4,1823.2,12.0061]
[1743267845511,3.2078,1823.5,1823.2,12.0061]
[1743267845710,1.09729,1823.4,1823.2,12.0061]
[1743267846011,1.09729,1823.4,1823.2,13.10348]
[1743267846611,3.2078,1823.5,1823.2,13.10348]
[1743267846815,1.09732,1823.3,1823.1,5.52441]
[1743267847013,2.74317,1823.4,1823.0,11.9522]
[1743267847313,2.74317,1823.4,1822.9,3.2078]
[1743267847314,1.09748,1823.1,1822.9,1.09756]
[1743267847513,8.5323,1823.0,1822.9,11.9522]
[1743267847914,7.4348,1823.0,1822.9,13.04976]
[1743267848405,5.8413,1823.2,1822.9,15.16]
[1743267848604,5.8413,1823.2,1823.1,1.09744]
[1743267848803,1.09733,1823.3,1823.1,1.09742]
[1743267849106,1.09733,1823.3,1823.1,12.67892]
[1743267849508,13.2761,1823.4,1823.1,11.5815]
[1743267849713,1.09733,1823.3,1823.1,12.67892]
[1743267849906,1.09733,1823.3,1823.1,11.5815]
[1743267850109,3.2078,1823.3,1822.8,0.00822233]
[1743267850308,1.09756,1822.9,1822.8,11.58972233]
[1743267850610,13.2761,1823.4,1823.0,1.09747]
[1743267850611,1.09738,1823.2,1823.0,1.09747]
[1743267850916,1.09736,1823.3,1823.1,12.67894]
[1743267851115,13.2761,1823.4,1823.1,11.5815]
[1743267851311,1.09736,1823.3,1823.1,12.67893]
[1743267851515,14.37341,1823.4,1823.2,1.09738]
[1743267851814,13.2761,1823.4,1823.3,11.93942]
[1743267853513,14.37336,1823.4,1823.3,10.8421]
[1743267853716,13.2761,1823.4,1823.3,11.93942]
[1743267854110,13.2761,1823.4,1823.3,10.8421]
[1743267854311,14.37336,1823.4,1823.3,10.8421]
[1743267854616,13.2761,1823.4,1823.3,11.93942]
[1743267855018,0.00822233,1823.7,1823.3,25.75521087]
[1743267855212,0.00822233,1823.7,1823.6,1.09714]
[1743267855408,0.00822233,1823.7,1823.4,11.3323]
[1743267855616,0.00822233,1823.7,1823.6,1.09714]
[1743267856017,0.00822233,1823.7,1823.5,8.27184285]
[1743267856315,0.00822233,1823.7,1823.6,11.3323]
[1743267856616,0.00822233,1823.7,1823.6,12.42944]
[1743267857420,1.10530233,1823.7,1823.6,12.42944]
[1743267857719,0.00822233,1823.7,1823.6,12.42944]
[1743267858917,0.00822233,1823.7,1823.6,16.85044]
[1743267859125,0.00822233,1823.7,1823.6,20.05824]
[1743267859719,0.00822233,1823.7,1823.6,16.85044]
[1743267860922,1.10530233,1823.7,1823.6,15.7533]
[1743267861217,12.13090233,1823.7,1823.6,16.85044]
[1743267861614,12.13090233,1823.7,1823.6,15.7533]
[1743267862322,12.13090233,1823.7,1823.6,16.85044]
[1743267862914,11.03382233,1823.7,1823.6,16.85044]
[1743267863824,12.13090233,1823.7,1823.6,16.85044]
[1743267864523,11.03382233,1823.7,1823.6,16.85044]
[1743267864823,0.00822233,1823.7,1823.6,27.14929821]
[1743267865119,0.00822233,1823.7,1823.6,23.94149821]
[1743267865319,1.10530233,1823.7,1823.6,11.3323]
[1743267865822,1.09741,1823.2,1823.0,4.419]
[1743267866123,3.2078,1823.4,1823.0,4.419]
[1743267866325,7.4532,1823.3,1823.1,8.38458645]
[1743267866822,3.2078,1823.4,1823.3,1.09732]
[1743267867118,3.2078,1823.4,1823.3,5.51532]
[1743267869219,4.30506,1823.4,1823.3,4.418]
[1743267869421,15.57756,1823.4,1823.3,4.418]
[1743267869822,11.2725,1823.4,1823.3,4.418]
[1743267870016,5.9498,1823.6,1823.3,4.418]
[1743267870017,7.04697,1823.6,1823.3,4.418]
[1743267870319,5.9498,1823.6,1823.5,1.0972]
[1743267870521,7.04696,1823.6,1823.4,11.90875]
[1743267871118,10.66922233,1823.7,1823.4,10.8115]
[1743267871322,18.41032233,1823.7,1823.5,8.11479479]
[1743267871530,19.50740233,1823.7,1823.6,10.8115]
[1743267871723,18.41032233,1823.7,1823.6,10.8115]
[1743267872329,18.41032233,1823.7,1823.6,11.90864]
[1743267873032,18.41032233,1823.7,1823.6,10.8115]
[1743267873247,18.41032233,1823.7,1823.6,11.90864]
[1743267873642,18.41032233,1823.7,1823.6,10.8115]
[1743267874449,1.0972,1823.5,1823.4,4.416]
[1743267874641,3.2078,1823.6,1823.0,3.7566]
[1743267874841,1.09744,1823.1,1823.0,3.7566]
[1743267875140,1.0975,1823.0,1822.9,10.8732]
[1743267875446,18.0088,1823.0,1822.9,11.97076]
[1743267875644,3.2078,1823.4,1822.9,10.8732]
[1743267875849,19.10615,1823.3,1823.1,1.09743]
[1743267876150,18.0088,1823.3,1823.2,10.8732]
[1743267876644,6.9147,1823.3,1823.2,11.97058]
[1743267877152,18.89562,1823.3,1823.2,10.8732]
[1743267877444,17.7983,1823.3,1823.2,10.8732]
[1743267877645,17.7983,1823.3,1823.2,11.97058]
[1743267878547,18.89562,1823.3,1823.2,10.8732]
[1743267880444,1.09756,1822.9,1822.8,0.00822233]
[1743267881051,1.09754,1823.0,1822.8,0.00822233]
[1743267881254,12.54936,1822.9,1822.8,0.00822233]
[1743267883346,14.6596,1822.9,1822.8,0.00822233]
[1743267883545,12.54936,1822.9,1822.8,0.00822233]
[1743267883743,11.4518,1822.9,1822.8,0.00822233]
[1743267884141,12.54936,1822.9,1822.8,11.27092233]
[1743267884452,12.54936,1822.9,1822.8,0.00822233]
[1743267885757,11.4518,1822.9,1822.8,0.00822233]
[1743267885940,11.4518,1822.9,1822.8,1.10585233]
[1743267886145,8.848,1823.1,1823.0,1.0975]
[1743267886351,6.9147,1823.3,1822.9,14.9782]
[1743267886553,6.9147,1823.3,1823.0,8.33074784]
[1743267886846,18.4558,1823.3,1823.1,12.86784]
[1743267887152,5.8083,1823.6,1823.1,16.1824]
[1743267887351,17.3494,1823.6,1823.3,3.2078]
[1743267887545,18.44659,1823.6,1823.2,20.10103784]
[1743267887745,18.44658,1823.6,1823.2,12.86776]
[1743267888046,18.44658,1823.6,1823.3,7.07715623]
[1743267888347,18.44658,1823.6,1823.4,11.3275]
[1743267889147,17.3494,1823.6,1823.4,11.3275]
[1743267891541,20.5572,1823.6,1822.9,19.89]
[1743267891740,1.09724,1823.5,1823.0,15.2555]
[1743267891947,11.4298,1823.4,1823.2,1.09738]
[1743267892142,11.4298,1823.4,1823.3,10.8455]
[1743267892357,5.8083,1823.6,1823.4,1.09723]
[1743267892555,17.2381,1823.6,1823.5,11.9427]
[1743267892848,17.2381,1823.6,1823.5,10.8455]
[1743267893250,17.2381,1823.6,1823.3,4.41]
[1743267893451,18.3353,1823.6,1823.3,4.41]
[1743267893646,18.3353,1823.6,1823.3,5.50732]
[1743267893855,18.3353,1823.6,1823.4,10.8455]
[1743267895759,11.7811,1823.5,1823.4,10.8455]
[1743267896957,12.8783,1823.5,1823.4,10.8455]
[1743267897153,12.8783,1823.5,1823.3,5.5073]
[1743267897561,11.7811,1823.5,1823.3,5.5073]
[1743267897760,11.7811,1823.5,1823.4,1.09726]
[1743267897963,11.7811,1823.5,1823.3,5.50729]
[1743267898358,11.7811,1823.5,1823.4,11.3018]
[1743267898658,11.7811,1823.5,1823.4,12.39906]
[1743267899459,7.30822233,1823.7,1823.6,1.09714]
[1743267899665,9.86101,1824.5,1823.6,4.407]
[1743267899867,9.86101,1824.5,1824.1,1.0968]
[1743267899868,19.1745,1824.3,1824.1,1.0968]
[1743267900267,5.5566,1824.5,1824.3,1.09666]
[1743267900466,5.5566,1824.5,1824.3,1.09668]
[1743267900665,8.7644,1824.5,1824.2,4.407]
[1743267900968,8.7644,1824.5,1824.2,0.00822233]
[1743267900969,12.80599,1824.4,1824.2,0.00822233]
[1743267901358,12.80598,1824.4,1824.2,0.00822233]
[1743267901559,11.7093,1824.4,1824.2,0.00822233]
[1743267901763,12.80599,1824.4,1824.2,0.00822233]
[1743267902068,12.80598,1824.4,1824.2,0.00822233]
[1743267902460,11.7093,1824.4,1824.2,1.10500233]
[1743267902662,11.7093,1824.4,1824.3,13.06072]
[1743267902970,11.7093,1824.4,1824.3,11.964]
[1743267903170,11.7093,1824.4,1824.3,13.06072]
[1743267903666,0.00822233,1824.6,1824.3,11.964]
[1743267903867,0.00822233,1824.6,1824.5,1.0966]
[1743267904477,21.02159931,1825.1,1825.0,1.0963]
[1743267904769,3.2078,1826.0,1825.0,1.0963]
[1743267904770,3.2078,1825.9,1825.2,1.09618]
[1743267904963,14.1804,1825.5,1825.1,10.8067]
[1743267905168,1.0962,1825.2,1825.0,11.38809256]
[1743267905472,6.7857,1825.4,1825.0,1.0963]
[1743267905473,10.9726,1825.1,1825.0,1.0963]
[1743267906165,10.9726,1825.1,1824.9,4.31236233]
[1743267906359,10.9726,1825.1,1825.0,1.0963]
[1743267906564,0.00822233,1825.3,1825.0,12.58548481]
[1743267906871,0.00822233,1825.3,1825.2,1.09618]
[1743267907365,0.00822233,1825.3,1825.2,10.68138481]
[1743267907575,22.9891,1825.9,1825.5,1.09598]
[1743267907775,18.6855,1825.9,1825.6,5.49992]
[1743267908268,18.6855,1825.9,1825.6,4.404]
[1743267908463,19.78126,1825.9,1825.6,4.404]
[1743267908665,19.78948233,1825.9,1825.6,4.41222233]
[1743267908967,3.2078,1825.7,1825.1,0.548]
[1743267909170,3.2078,1825.4,1824.8,3.2078]
[1743267909472,1.09639,1824.9,1824.6,1.09652]
[1743267909769,18.4647,1824.8,1824.6,4.402]
[1743267909973,18.4647,1824.8,1824.7,1.09648]
[1743267910164,11.3121,1824.8,1824.6,12.58286448]
[1743267910468,11.3121,1824.8,1824.6,5.49852]
[1743267911070,1.09652,1824.7,1824.5,7.61802233]
[1743267911270,11.3121,1824.6,1824.5,7.61802233]
[1743267911572,11.3121,1824.6,1824.5,8.71462233]
[1743267912172,11.3121,1824.6,1824.5,0.00822233]
[1743267912173,12.40864,1824.6,1824.5,0.00822233]
[1743267914565,1.09671,1824.4,1824.1,8.7056]
[1743267914765,11.4049,1824.3,1824.1,8.7056]
[1743267915170,11.4049,1824.3,1824.2,1.09678]
[1743267915370,11.4049,1824.3,1824.1,8.7056]
[1743267915963,11.4049,1824.3,1824.1,7.6088]
[1743267916168,11.4049,1824.3,1824.1,8.70563]
[1743267916369,11.4049,1824.3,1824.1,7.6088]
[1743267916566,12.50162,1824.3,1824.1,7.6088]
[1743267917568,11.4049,1824.3,1824.1,7.6088]
[1743267917772,12.50162,1824.3,1824.1,7.6088]
[1743267918374,1.09678,1824.2,1824.1,7.6088]
[1743267918561,12.50167,1824.3,1824.1,7.6088]
[1743267918762,1.09678,1824.2,1824.1,7.6088]
[1743267919070,12.50167,1824.3,1824.1,7.6088]
[1743267919576,12.50162,1824.3,1824.1,7.6088]
[1743267919962,12.50162,1824.3,1824.1,8.70564]
[1743267920571,12.50162,1824.3,1824.1,7.6088]
[1743267920774,11.4049,1824.3,1824.1,8.70563]
[1743267920972,5.9279,1824.6,1824.1,7.6088]
[1743267921276,12.14743,1824.5,1824.2,11.1491]
[1743267921469,1.09666,1824.4,1824.2,11.1491]
[1743267921669,11.0508,1824.3,1824.2,12.24588]
[1743267921970,6.9049,1824.7,1824.3,7.28357206]
[1743267922169,11.1413,1824.8,1824.7,1.09648]
[1743267922476,4.30412,1825.0,1824.7,1.09644]
[1743267922672,11.14952233,1824.9,1824.7,12.25654]
[1743267923274,12.24593233,1824.9,1824.7,11.1601]
[1743267923677,11.14952233,1824.9,1824.7,12.25656]
[1743267923975,12.24590233,1824.9,1824.7,12.25656]
[1743267924677,12.24592233,1824.9,1824.7,12.25656]
[1743267925178,1.09642,1824.8,1824.7,11.1601]
[1743267925478,12.24593233,1824.9,1824.7,12.25658]
[1743267925976,12.24591233,1824.9,1824.7,12.25654]
[1743267926176,11.14952233,1824.9,1824.6,3.2078]
[1743267926371,11.14952233,1824.9,1824.2,2.74186]
[1743267926372,1.09654,1824.6,1824.5,11.1799]
[1743267926578,1.09654,1824.6,1824.5,1.0966]
[1743267926776,1.09654,1824.6,1824.4,5.49362]
[1743267927077,11.4796,1824.5,1824.3,11.1799]
[1743267927279,18.9161,1824.5,1824.4,1.09666]
[1743267927477,0.00822233,1824.9,1824.8,1.09642]
[1743267928183,11.51592233,1824.9,1824.8,1.09642]
[1743267928681,0.00822233,1824.9,1824.8,1.09642]
[1743267929074,3.2078,1825.4,1824.8,15.67243413]
[1743267929276,11.5077,1825.3,1825.0,3.2078]
[1743267929485,11.5077,1825.3,1825.2,1.09618]
[1743267929674,12.2596,1825.6,1825.3,1.09608]
[1743267929876,11.5077,1825.4,1825.3,1.09608]
[1743267930177,11.5077,1825.4,1825.3,1.09612]
[1743267930377,11.5077,1825.4,1825.2,0.00822233]
[1743267930580,12.60381,1825.4,1825.2,0.00822233]
[1743267930776,11.5077,1825.4,1825.2,0.00822233]
[1743267930977,12.60376,1825.4,1825.2,0.00822233]
[1743267931178,1.10426233,1825.5,1825.2,0.00822233]
[1743267931378,11.7814,1825.4,1825.2,0.00822233]
[1743267931778,12.87747,1825.4,1825.2,0.00822233]
[1743267932178,11.7814,1825.4,1825.2,0.00822233]
[1743267932786,11.7814,1825.4,1825.2,1.10438233]
[1743267933084,11.7814,1825.4,1825.2,0.00822233]
[1743267933284,11.7814,1825.4,1825.2,1.10439233]
[1743267934382,11.7814,1825.4,1825.2,0.00822233]
[1743267934686,11.7814,1825.4,1825.2,1.10440233]
[1743267935484,11.7814,1825.4,1825.3,1.09612]
[1743267935980,11.7814,1825.4,1825.2,0.00822233]
[1743267935981,11.7814,1825.4,1825.2,1.10439233]
[1743267936380,12.87747,1825.4,1825.2,1.10439233]
[1743267936581,11.7814,1825.4,1825.2,1.10439233]
[1743267936991,11.7814,1825.4,1825.2,0.00822233]
[1743267937188,1.09638,1824.9,1824.6,3.7558]
[1743267937378,4.30408,1825.1,1824.8,1.09638]
[1743267937579,7.0616,1825.0,1824.7,7.04204807]
[1743267937783,18.7271,1825.0,1824.9,1.09636]
[1743267938086,1.09621,1825.2,1825.0,1.0963]
[1743267938289,11.6655,1825.1,1825.0,1.0963]
[1743267939190,11.36548,1825.4,1825.2,1.09617]
[1743267939383,21.9349,1825.4,1825.3,1.09612]
[1743267940087,0.00822233,1825.5,1825.4,1.09606]
[1743267940385,0.00822233,1825.5,1825.4,5.48706]
[1743267940787,0.00822233,1825.5,1825.4,15.87984061]
[1743267941480,3.2078,1825.9,1825.8,1.09582]
[1743267941781,1.09566,1826.1,1825.8,1.09579]
[1743267941981,11.8919,1826.0,1825.9,11.0543]
[1743267942787,0.00822233,1826.1,1826.0,1.0957]
[1743267942992,0.00822233,1826.1,1825.9,1.09571]
[1743267943688,0.00822233,1826.1,1825.8,0.00822233]
[1743267943888,1.09573,1826.0,1825.8,0.00822233]
[1743267944188,6.8008,1825.9,1825.8,0.00822233]
[1743267944380,19.31526,1825.9,1825.8,0.00822233]
[1743267944784,2.73956,1825.8,1824.8,53.8428]
[1743267944980,3.2078,1825.3,1824.8,50.635]
[1743267945182,16.8299,1825.2,1824.6,4.937]
[1743267945379,11.4187,1825.1,1824.9,7.23484865]
[1743267945686,11.4187,1825.1,1824.9,1.09634]
[1743267945983,6.51566233,1825.2,1824.9,1.09635]
[1743267946186,3.2078,1825.0,1824.9,1.09635]
[1743267946487,11.5665,1825.1,1825.0,1.0963]
[1743267946687,11.5665,1825.1,1824.9,1.09632]
[1743267946886,11.5665,1825.1,1824.9,8.23965831]
[1743267947678,11.5665,1825.1,1825.0,1.0963]
[1743267947884,0.00822233,1825.2,1825.1,1.09624]
[1743267948080,0.00822233,1825.2,1825.0,8.13281415]
[1743267948382,11.57472233,1825.2,1825.0,1.09628]
[1743267948580,11.57472233,1825.2,1824.9,4.388]
[1743267948581,0.00822233,1825.2,1825.1,1.09624]
[1743267948779,0.00822233,1825.2,1825.1,7.1305876]
[1743267948987,1.10440233,1825.2,1825.0,7.1305876]
[1743267949189,12.31960233,1825.2,1825.0,7.1305876]
[1743267949491,12.31960233,1825.2,1824.9,5.48434]
[1743267949790,11.22342233,1825.2,1825.1,1.09624]
[1743267955594,11.22342233,1825.2,1824.9,4.388]
[1743267955890,3.2078,1825.0,1824.9,1.09633]
[1743267956085,4.30411,1825.0,1824.8,1.10461233]
[1743267956293,18.6666,1824.9,1824.8,1.10461233]
[1743267957085,18.6666,1824.9,1824.8,0.00822233]
[1743267957288,19.76296,1824.9,1824.8,0.00822233]
[1743267957693,1.09644,1824.8,1824.6,4.386]
[1743267957893,1.09655,1824.6,1824.3,1.09672]
[1743267958097,3.2078,1824.4,1824.3,1.09672]
[1743267958891,4.385,1824.8,1824.3,1.09672]
[1743267958892,3.2078,1824.6,1824.3,7.17629661]
[1743267959098,3.2078,1824.8,1824.7,1.09645]
[1743267960795,3.2078,1824.8,1824.4,4.385]
[1743267960999,3.2078,1824.6,1824.4,4.385]
[1743267961192,3.2078,1824.6,1824.5,7.23683049]
[1743267961498,14.4204,1824.6,1824.5,18.98923049]
[1743267962094,14.4204,1824.6,1824.5,7.23683049]
[1743267962302,15.51694,1824.6,1824.3,11.7524]
[1743267962602,3.2078,1824.4,1824.3,11.7524]
[1743267962788,3.2078,1824.4,1824.3,18.91234625]
[1743267962989,3.2078,1824.4,1824.3,11.7524]
[1743267963899,4.30446,1824.4,1824.3,11.7524]
[1743267964297,3.2078,1824.4,1824.3,11.7524]
[1743267964998,4.30446,1824.4,1824.3,11.7524]
[1743267965295,3.2078,1824.4,1824.3,11.7524]
[1743267965500,3.2078,1824.4,1824.3,12.84912]
[1743267965998,3.2078,1824.4,1824.3,11.7524]
[1743267966395,3.2078,1824.4,1824.3,12.84912]
[1743267966793,3.2078,1824.4,1824.2,5.48895233]
[1743267966992,3.2078,1824.4,1824.3,11.3761]
[1743267967197,3.2078,1824.4,1824.3,18.4559411]